bitfinex-derivatives/quotes_BNBF0:USTF0_20250128
["timestamp","ask_amount","ask_price","bid_price","bid_amount"]
[1738029995118,0.24421923,679.29,678.11,0.29493739]
[1738029995419,0.24421923,679.28,678.12,0.27077321]
[1738029995614,0.24421923,679.29,678.12,0.27077321]
[1738029995816,0.24421923,679.28,678.12,0.27077321]
[1738029996015,0.24421923,679.27,678.12,0.27077321]
[1738029996219,0.24421923,679.29,678.12,0.27077321]
[1738029996520,0.24421923,679.28,678.12,0.27077321]
[1738029996717,0.24421923,679.27,678.12,0.27077321]
[1738029996922,1.10294079,679.3,678.12,0.27077321]
[1738029997221,0.24418508,679.29,678.12,0.27077321]
[1738029997719,0.24418508,679.29,678.13,0.2949287]
[1738029997920,0.24418508,679.29,678.14,0.27077321]
[1738029998119,0.24418508,679.29,678.15,0.29492]
[1738029998513,0.24418508,679.29,678.16,0.27077321]
[1738029998715,0.24418508,679.29,678.17,0.2949113]
[1738029999016,0.24418508,679.29,678.18,0.27077321]
[1738029999219,0.24418508,679.35,678.19,0.2949026]
[1738029999416,0.24418508,679.34,678.2,0.27077321]
[1738029999616,0.24418508,679.35,678.19,0.2949026]
[1738029999820,0.24418508,679.34,678.2,0.27075779]
[1738030000020,0.24418508,679.35,678.2,0.27075779]
[1738030000219,0.24420125,679.34,678.19,0.2949026]
[1738030000422,1.10294079,679.36,678.19,0.2949026]
[1738030000423,0.24420125,679.33,678.2,0.27075479]
[1738030000823,0.24420125,679.32,678.2,0.27075479]
[1738030001023,0.24420125,679.35,678.2,0.27075479]
[1738030001523,1.10294079,679.31,678.19,0.2949026]
[1738030001824,0.24420125,679.3,678.19,0.2949026]
[1738030002028,0.24420125,679.3,678.2,0.27075802]
[1738030004426,1.10294079,679.31,678.19,0.2949026]
[1738030004427,0.24419771,679.29,678.19,0.2949026]
[1738030004726,0.24419771,679.28,678.2,0.27075038]
[1738030004926,0.24419771,679.32,678.2,0.27075038]
[1738030005225,0.24418376,679.31,678.21,0.29489391]
[1738030005427,1.10294079,679.33,678.22,0.27075038]
[1738030005622,1.10294079,679.33,678.22,0.29488956]
[1738030005824,0.24418439,679.32,678.23,0.27073773]
[1738030008023,0.24418439,679.31,678.23,0.27073773]
[1738030008329,0.24418439,679.3,678.23,0.27073773]
[1738030008527,0.24418439,679.39,678.23,0.27073773]
[1738030008829,0.24418439,679.38,678.23,0.27073773]
[1738030009026,0.24418439,679.39,678.23,0.27073773]
[1738030009228,0.24418785,679.38,678.24,0.27074126]
[1738030009428,0.24418785,679.39,678.23,0.27074126]
[1738030010130,0.24418785,679.39,678.22,0.29488956]
[1738030010524,1.10294079,679.37,678.22,0.29488956]
[1738030010724,0.24418785,679.36,678.22,0.29488956]
[1738030012832,1.10294079,679.3,678.22,0.29488956]
[1738030013030,0.2442293,679.29,678.22,0.29488956]
[1738030014630,1.10294079,679.3,678.22,0.29488956]
[1738030014831,0.24420954,679.29,678.22,0.29488956]
[1738030016233,0.24420954,679.28,678.22,0.29488956]
[1738030016429,1.10294079,679.34,678.22,0.29488956]
[1738030016730,0.2441808,679.33,678.23,0.27073452]
[1738030017135,0.2441808,679.33,678.23,0.56561973]
[1738030017434,1.10294079,679.34,678.24,0.27072323]
[1738030018334,1.10294079,679.34,678.24,0.56560409]
[1738030018530,1.10294079,679.34,678.24,0.29488086]
[1738030018936,1.10294079,679.34,678.25,0.27072332]
[1738030019131,1.10294079,679.34,678.24,0.29488086]
[1738030020233,1.10294079,679.44,678.25,0.27072102]
[1738030020436,0.24416782,679.43,678.25,0.27072102]
[1738030021539,1.10294079,679.44,678.24,0.29488086]
[1738030021840,0.24416529,679.43,678.25,0.27071843]
[1738030022743,1.34710608,679.43,678.25,0.27071843]
[1738030023041,0.24416529,679.42,678.25,0.27071843]
[1738030025238,1.10294079,679.41,678.25,0.27071843]
[1738030025637,0.24415452,679.4,678.25,0.27071843]
[1738030027044,0.24415452,679.4,678.26,0.29487217]
[1738030027243,0.24415452,679.4,678.27,0.27071843]
[1738030027745,1.10294079,679.41,678.28,0.29486347]
[1738030027943,0.24415427,679.4,678.29,0.27070721]
[1738030028144,1.10294079,679.42,678.28,0.29486347]
[1738030031141,1.10294079,679.6,678.28,0.29486347]
[1738030031340,0.24412436,679.59,678.28,0.29486347]
[1738030032344,1.10294079,679.6,678.28,0.29486347]
[1738030032544,0.24413465,679.59,678.28,0.29486347]
[1738030034345,0.24413465,679.6,678.28,0.29486347]
[1738030036145,0.24413777,679.59,678.28,0.29486347]
[1738030036342,0.24413777,679.58,678.28,0.29486347]
[1738030036643,0.24413777,679.57,678.28,0.29486347]
[1738030036841,0.24413777,679.6,678.28,0.29486347]
[1738030037051,0.24413777,679.59,678.28,0.29486347]
[1738030037242,0.24413777,679.6,678.28,0.29486347]
[1738030037547,0.24413777,679.59,678.28,0.29486347]
[1738030037848,0.24413777,679.58,678.28,0.29486347]
[1738030038048,1.10294079,679.61,678.29,0.27069118]
[1738030038049,0.24413777,679.6,678.29,0.27069118]
[1738030038248,0.24413777,679.59,678.3,0.29485478]
[1738030038544,0.24413777,679.58,678.31,0.27069118]
[1738030038747,0.24413777,679.6,678.31,0.27069118]
[1738030038943,0.24413777,679.57,678.31,0.27069118]
[1738030039148,0.24413777,679.56,678.31,0.27069118]
[1738030039350,0.24413777,679.6,678.31,0.27069118]
[1738030039548,0.24413777,679.59,678.31,0.27069118]
[1738030039752,0.24413777,679.6,678.31,0.27069118]
[1738030039949,0.24413777,679.59,678.31,0.27069118]
[1738030040144,0.24413777,679.6,678.31,0.27069118]
[1738030040349,1.10294079,679.47,678.31,0.27069118]
[1738030040551,0.24413777,679.46,678.31,0.27069118]
[1738030043048,0.24413777,679.46,678.3,0.29485478]
[1738030043944,1.10294079,679.41,678.3,0.29485478]
[1738030044149,0.24413777,679.4,678.3,0.29485478]
[1738030046750,1.10294079,679.29,678.3,0.29485478]
[1738030046944,0.24413777,679.28,678.3,0.29485478]
[1738030047746,0.24421442,679.27,678.3,0.29485478]
[1738030047943,0.24421442,679.28,678.3,0.29485478]
[1738030048147,0.24421442,679.27,678.3,0.29485478]
[1738030048345,0.24421442,679.28,678.3,0.29485478]
[1738030048549,0.24421442,679.27,678.3,0.29485478]
[1738030048743,0.24421442,679.28,678.3,0.29485478]
[1738030049752,0.24421442,679.27,678.3,0.29485478]
[1738030050050,0.24421442,679.31,678.3,0.29485478]
[1738030050252,0.24421442,679.3,678.3,0.29485478]
[1738030050446,0.24421442,679.31,678.3,0.29485478]
[1738030050650,0.24421442,679.29,678.3,0.29485478]
[1738030050953,0.24421442,679.28,678.3,0.29485478]
[1738030051251,0.24421442,679.27,678.3,0.29485478]
[1738030051447,0.24421442,679.31,678.3,0.29485478]
[1738030051654,0.24421442,679.3,678.3,0.29485478]
[1738030051854,0.24421442,679.31,678.3,0.29485478]
[1738030052055,0.24421442,679.3,678.3,0.29485478]
[1738030052251,0.24421442,679.31,678.3,0.29485478]
[1738030052449,1.10294079,679.23,678.3,0.29485478]
[1738030052655,0.24426818,679.22,678.3,0.29485478]
[1738030054758,0.24426818,679.29,678.3,0.29485478]
[1738030054959,0.24426818,679.28,678.3,0.29485478]
[1738030055259,0.24426818,679.27,678.3,0.29485478]
[1738030055457,0.24426818,679.29,678.3,0.29485478]
[1738030056158,0.24426818,679.29,677.72,1.10013322]
[1738030056356,0.24426818,679.29,677.74,0.29509841]
[1738030057556,0.29442939,679.28,677.74,0.29509841]
[1738030058252,1.39737018,679.28,677.74,0.29509841]
[1738030058657,1.39737018,679.28,677.75,1.53853522]
[1738030059554,1.39737018,679.28,677.76,0.2950897]
[1738030060152,0.24429322,679.27,677.76,0.2950897]
[1738030060355,0.29443806,679.26,677.76,0.2950897]
[1738030066463,0.24429098,679.25,677.77,0.27084607]
[1738030066664,0.24429098,679.25,677.78,0.29508099]
[1738030069363,0.24429098,679.25,677.79,0.27084607]
[1738030069564,0.24429098,679.25,677.8,0.29507229]
[1738030069766,0.24429098,679.25,677.81,0.27084607]
[1738030069961,0.24429098,679.25,677.82,0.29506358]
[1738030070169,0.24429098,679.25,677.83,0.27084607]
[1738030070768,0.24429098,679.25,677.84,0.29505488]
[1738030071067,0.24429098,679.25,677.85,0.27084607]
[1738030071260,0.24429098,679.25,677.86,0.29504617]
[1738030071765,0.24429098,679.25,677.87,0.27084693]
[1738030071962,0.24429098,679.25,677.88,0.29503746]
[1738030072167,0.24429098,679.25,677.89,0.27084693]
[1738030072366,0.24429098,679.25,677.9,0.29502876]
[1738030072761,0.24429468,679.24,677.9,0.29502876]
[1738030073066,0.24429468,679.23,677.9,0.29502876]
[1738030073267,0.24429468,679.25,677.9,0.29502876]
[1738030073567,0.29443806,679.26,677.9,0.29502876]
[1738030080272,1.53846154,679.25,677.9,0.29502876]
[1738030080572,0.29444673,679.24,677.9,0.29502876]
[1738030082270,1.10294079,679.07,677.9,0.29502876]
[1738030085973,1.10294079,678.96,677.9,0.29502876]
[1738030088476,1.10294079,678.94,677.9,0.29502876]
[1738030088867,0.24437763,678.93,677.9,0.29502876]
[1738030089473,0.24437762,678.92,677.9,0.29502876]
[1738030089774,0.24437762,678.91,677.9,0.29502876]
[1738030089969,0.24437762,678.93,677.9,0.29502876]
[1738030090176,0.24437762,678.92,677.9,0.29502876]
[1738030090376,0.24437762,678.93,677.9,0.29502876]
[1738030090571,0.24437762,678.92,677.9,0.29502876]
[1738030090782,1.10294079,678.9,677.9,0.29502876]
[1738030091078,0.24437762,678.89,677.9,0.29502876]
[1738030093270,0.24437762,678.92,677.9,0.29502876]
[1738030093469,0.24437762,678.91,677.9,0.29502876]
[1738030093776,0.24437762,678.9,677.9,0.29502876]
[1738030093974,0.24437762,678.89,677.9,0.29502876]
[1738030094173,0.24437762,678.88,677.9,0.29502876]
[1738030094374,0.24437762,678.92,677.9,0.29502876]
[1738030094575,0.24437762,678.91,677.9,0.29502876]
[1738030094774,0.24437762,678.92,677.9,0.29502876]
[1738030095075,0.24437762,678.91,677.9,0.29502876]
[1738030095275,0.24437762,678.92,677.9,0.29502876]
[1738030095471,0.24437762,678.91,677.9,0.29502876]
[1738030095676,0.24437762,678.92,677.9,0.29502876]
[1738030095877,0.24437762,678.91,677.9,0.29502876]
[1738030096175,0.24437762,678.9,677.9,0.29502876]
[1738030096472,0.24437762,678.89,677.9,0.29502876]
[1738030096677,1.10294079,678.87,677.9,0.29502876]
[1738030096977,0.24437097,678.86,677.9,0.29502876]
[1738030099579,0.24437097,678.85,677.9,0.29502876]
[1738030099781,0.24437097,678.93,677.9,0.29502876]
[1738030099976,0.24437097,678.92,677.9,0.29502876]
[1738030100173,0.24436239,678.91,677.9,0.29502876]
[1738030100380,0.24436239,678.9,677.9,0.29502876]
[1738030100777,0.24436239,678.89,677.9,0.29502876]
[1738030100974,0.24436239,678.88,677.9,0.29502876]
[1738030101277,0.24436239,678.87,677.9,0.29502876]
[1738030101476,0.24436239,678.93,677.9,0.29502876]
[1738030101672,0.24436239,678.92,677.9,0.29502876]
[1738030101978,0.24436239,678.91,677.9,0.29502876]
[1738030102180,0.24436239,678.9,677.9,0.29502876]
[1738030102376,0.24436239,678.89,677.9,0.29502876]
[1738030102579,0.24436239,678.93,677.9,0.29502876]
[1738030102777,0.24436239,678.92,677.9,0.29502876]
[1738030102974,0.24436239,678.91,677.9,0.29502876]
[1738030103179,0.24436239,678.9,677.9,0.29502876]
[1738030103580,1.10294079,678.94,677.9,0.29502876]
[1738030103581,0.24436239,678.89,677.9,0.29502876]
[1738030103781,0.24438058,678.88,677.9,0.29502876]
[1738030103981,0.24438058,678.93,677.9,0.29502876]
[1738030104181,0.24438058,678.92,677.9,0.29502876]
[1738030104482,0.24438058,678.91,677.9,0.29502876]
[1738030104683,0.24438058,678.9,677.9,0.29502876]
[1738030104982,1.10294079,679.16,677.9,0.29502876]
[1738030104983,1.34732137,678.89,677.9,0.29502876]
[1738030105178,0.24438058,678.88,677.9,0.29502876]
[1738030107383,1.10294079,678.89,677.9,0.29502876]
[1738030107684,0.24440408,678.88,677.9,0.29502876]
[1738030108383,1.10294079,678.82,677.9,0.29502876]
[1738030108579,0.24440408,678.81,677.9,0.29502876]
[1738030111392,0.24440408,678.82,677.9,0.29502876]
[1738030114392,0.24438781,678.81,677.9,0.29502876]
[1738030114691,1.10294079,678.83,677.9,0.29502876]
[1738030114887,0.24438986,678.82,677.9,0.29502876]
[1738030116196,1.10294079,678.83,677.9,0.29502876]
[1738030116391,0.24438728,678.82,677.9,0.29502876]
[1738030116991,1.34732807,678.82,677.9,0.29502876]
[1738030117298,0.24438728,678.81,677.9,0.29502876]
[1738030119496,1.10294079,678.82,677.9,0.29502876]
[1738030119995,0.24438578,678.81,677.9,0.29502876]
[1738030120600,1.10294079,678.76,677.9,0.29502876]
[1738030122801,0.24438778,678.75,677.9,0.29502876]
[1738030123003,1.34732857,678.75,677.9,0.29502876]
[1738030123203,1.10294079,678.75,677.9,0.29502876]
[1738030125699,1.10294079,678.7,677.9,0.29502876]
[1738030129306,1.10294079,678.71,677.9,0.29502876]
[1738030133403,1.10294079,678.71,677.76,1.53905689]
[1738030134402,1.10294079,678.7,677.76,1.53905689]
[1738030138313,1.10294079,678.75,677.76,1.53905689]
[1738030140516,1.10294079,678.71,677.76,1.53905689]
[1738030143711,0.24441281,678.7,677.76,1.53905689]
[1738030144316,1.10294079,678.65,677.76,1.53905689]
[1738030147818,1.10294079,678.63,677.76,1.53905689]
[1738030148219,1.10294079,678.63,677.77,0.27092068]
[1738030151624,1.10294079,678.77,677.77,0.27092068]
[1738030151824,1.10294079,678.77,677.78,0.27090978]
[1738030152122,1.10294079,678.77,677.79,0.27090978]
[1738030152320,1.10294079,678.77,677.8,0.27090978]
[1738030152522,1.10294079,678.77,677.77,0.27090978]
[1738030152724,1.10294079,678.77,677.78,0.27090978]
[1738030152923,1.10294079,678.77,677.77,0.27090978]
[1738030153125,1.10294079,678.77,677.78,0.27090978]
[1738030153317,1.10294079,678.77,677.77,0.27090978]
[1738030153617,1.10294079,678.77,677.78,0.27090944]
[1738030153816,1.10294079,678.77,677.77,0.27090944]
[1738030154016,1.10294079,678.77,677.78,0.27090944]
[1738030154220,1.10294079,678.77,677.77,0.27090944]
[1738030154415,1.10294079,678.77,677.76,2.63919011]
[1738030154416,1.10294079,678.77,677.78,0.27091032]
[1738030154623,1.10294079,678.77,677.77,0.27091032]
[1738030154825,1.10294079,678.77,677.78,0.27091032]
[1738030155024,1.10294079,678.77,677.77,0.27091032]
[1738030155225,1.10294079,678.84,677.78,1.37104354]
[1738030155426,1.10294079,678.84,677.78,1.10013322]
[1738030155627,1.10294079,678.84,677.79,0.27090929]
[1738030157127,1.10294079,678.84,677.78,1.10013322]
[1738030157327,1.10294079,678.84,677.79,0.27092176]
[1738030158525,1.10294079,678.88,677.79,0.27092176]
[1738030158728,0.24436419,678.87,677.77,0.27092176]
[1738030158924,1.10294079,678.88,677.76,1.53905689]
[1738030159130,0.24436399,678.87,677.77,0.2709201]
[1738030160728,1.10294079,678.89,677.77,0.2709201]
[1738030160925,0.24435499,678.88,677.77,0.2709201]
[1738030162030,1.10294079,678.89,677.77,0.2709201]
[1738030162626,1.10294079,678.89,677.76,1.53905689]
[1738030162830,1.10294079,678.89,677.77,0.27091053]
[1738030163028,1.10294079,678.91,677.77,0.27091053]
[1738030163934,1.10294079,678.91,677.78,0.29508099]
[1738030167236,1.10294079,679.21,677.78,0.29508099]
[1738030167435,0.53881203,679.2,677.78,0.29508099]
[1738030167628,0.24434796,679.19,677.78,0.29508099]
[1738030168032,0.29447274,679.18,677.78,0.29508099]
[1738030168334,0.24434796,679.17,677.78,0.29508099]
[1738030168835,1.78299656,679.17,677.78,0.29508099]
[1738030169139,0.24434796,679.16,677.78,0.29508099]
[1738030169633,2.93606647,679.17,677.78,0.29508099]
[1738030170232,0.24434365,679.16,677.78,0.29508099]
[1738030170431,2.93606647,679.17,677.78,0.29508099]
[1738030172035,1.83312568,679.17,677.78,0.29508099]
[1738030172636,0.24432287,679.16,677.78,0.29508099]
[1738030173939,0.24432287,679.16,677.79,0.2708673]
[1738030174131,0.24432287,679.16,677.8,0.29507229]
[1738030174338,0.24432287,679.16,677.81,0.2708673]
[1738030174939,0.24432287,679.16,677.82,0.29506358]
[1738030175140,0.24432287,679.16,677.83,0.2708673]
[1738030176136,0.24433711,679.15,677.84,0.2708925]
[1738030176337,0.24433711,679.16,677.83,0.2708925]
[1738030176542,0.24433711,679.15,677.84,0.2708925]
[1738030176746,0.24433711,679.16,677.83,0.2708925]
[1738030176946,0.24433711,679.15,677.84,0.2708925]
[1738030177148,0.24433826,679.14,677.85,0.2708939]
[1738030177345,0.24433826,679.16,677.83,0.2708939]
[1738030177545,0.24433826,679.15,677.84,0.2708939]
[1738030177845,0.24433826,679.14,677.85,0.2708939]
[1738030178045,0.24433826,679.13,677.86,0.2708939]
[1738030178243,0.24433826,679.12,677.82,0.29506358]
[1738030178441,0.24433826,679.11,677.83,0.27089141]
[1738030178642,0.24433826,679.16,677.83,0.27089141]
[1738030178844,1.10294079,678.99,677.83,0.27089141]
[1738030179040,0.24433826,678.98,677.83,0.27089141]
[1738030181451,1.10294079,678.96,677.83,0.27089141]
[1738030181646,0.24433826,678.95,677.83,0.27089141]
[1738030182451,1.10294079,678.96,677.82,0.29506358]
[1738030182749,0.24433922,678.95,677.83,0.2708949]
[1738030184147,1.10294079,678.92,677.83,0.2708949]
[1738030184453,0.24433922,678.91,677.83,0.2708949]
[1738030186152,0.24432496,678.9,677.84,0.2708807]
[1738030186353,0.24432496,678.9,677.82,0.29506358]
[1738030186354,0.24432496,678.91,677.83,0.2708807]
[1738030186652,1.10294079,678.92,677.84,0.2708807]
[1738030186653,0.24432496,678.9,677.84,0.2708807]
[1738030186853,0.24432496,678.91,677.83,0.2708807]
[1738030187052,0.24432496,678.9,677.84,0.2708807]
[1738030187352,0.24432496,678.89,677.85,0.2708807]
[1738030187553,1.10294079,678.92,677.86,0.2708807]
[1738030187753,0.24431718,678.91,677.83,0.2708807]
[1738030188055,1.10294079,678.84,677.84,0.2708807]
[1738030188254,1.10294079,678.84,677.83,0.2708807]
[1738030188554,1.10294079,678.84,677.84,0.2708807]
[1738030188754,1.10294079,678.84,677.85,0.2708807]
[1738030189055,1.10294079,678.84,677.86,0.2708807]
[1738030189249,1.10294079,678.84,677.83,0.2708807]
[1738030189454,1.10294079,678.84,677.84,0.2708807]
[1738030189654,1.10294079,678.84,677.83,0.2708807]
[1738030189855,1.10294079,678.84,677.84,0.27087108]
[1738030190051,1.10294079,678.84,677.85,0.27087108]
[1738030190257,1.10294079,678.84,677.86,0.27087108]
[1738030190453,1.10294079,678.84,677.83,0.27087108]
[1738030190657,1.10294079,678.84,677.82,1.83376887]
[1738030190658,1.10294079,678.88,677.92,1.10013322]
[1738030190957,1.10294079,678.88,677.93,0.27087108]
[1738030191561,1.10294079,678.88,677.94,0.27087003]
[1738030191760,1.10294079,678.88,677.92,1.10013322]
[1738030191761,1.10294079,678.88,677.93,0.27087003]
[1738030191954,1.10294079,678.88,677.94,0.27087003]
[1738030192158,1.10294079,678.88,677.93,0.27087003]
[1738030192360,1.10294079,678.88,677.94,0.27087003]
[1738030192560,1.10294079,678.88,677.93,0.27087003]
[1738030192762,1.10294079,678.88,677.94,0.27087003]
[1738030193061,1.10294079,678.88,677.95,0.27087003]
[1738030193262,1.10294079,678.88,677.93,0.27087003]
[1738030193457,1.10294079,678.91,677.94,0.27087]
[1738030193661,1.10294079,678.91,677.95,0.27087]
[1738030193857,1.10294079,678.91,677.91,0.27087]
[1738030195765,0.74700251,679.16,677.91,0.27087]
[1738030195766,1.10294079,678.92,677.94,1.10013322]
[1738030195965,1.10294079,678.92,677.95,0.27087]
[1738030196960,1.10294079,678.92,677.94,1.10013322]
[1738030197167,1.10294079,678.92,677.95,0.2708528]
[1738030200266,1.10294079,678.96,677.97,1.10013322]
[1738030203772,1.10294079,679.04,677.89,1.10013322]
[1738030204072,0.24430091,679.03,677.9,0.56588476]
[1738030204268,1.10294079,679.04,677.91,0.270856]
[1738030205569,1.10294079,679.04,677.9,0.29502876]
[1738030205774,1.10294079,679.04,677.91,0.27081441]
[1738030206366,1.10294079,679.04,677.92,0.29502006]
[1738030206572,1.10294079,679.12,677.94,1.10013322]
[1738030206769,1.10294079,679.12,677.95,0.56582141]
[1738030207076,1.10294079,679.12,677.96,0.27081441]
[1738030208475,1.10294079,679.12,677.97,0.2949983]
[1738030208677,1.10294079,679.12,677.98,0.27081441]
[1738030208976,1.10294079,679.12,677.99,0.2949896]
[1738030209175,1.10294079,679.12,678.0,0.27081441]
[1738030209369,1.10294079,679.12,678.01,0.29498089]
[1738030209575,1.10294079,679.12,678.02,0.27081441]
[1738030210778,0.24424827,679.11,678.03,0.29497219]
[1738030210979,0.24424827,679.16,678.04,0.27081441]
[1738030211174,0.24424677,679.15,678.05,0.2708011]
[1738030211374,0.24424677,679.14,678.05,0.2708011]
[1738030211575,0.24424677,679.13,678.05,0.2708011]
[1738030211773,0.24424677,679.12,678.05,0.2708011]
[1738030211974,0.24424677,679.16,678.05,0.2708011]
[1738030216478,0.29447708,679.17,678.04,0.29496784]
[1738030216673,0.24424931,679.16,678.05,0.27080366]
[1738030218383,0.2442567,679.15,678.06,0.27081113]
[1738030218581,0.2442567,679.16,678.05,0.27081113]
[1738030218780,0.2442567,679.15,678.06,0.27081113]
[1738030218979,0.2442567,679.16,678.05,0.27081113]
[1738030219179,0.2442567,679.15,678.06,0.27081113]
[1738030219377,0.2442567,679.16,678.05,0.27081113]
[1738030219682,0.2442567,679.15,678.06,0.27081113]
[1738030219881,1.10294079,679.14,678.05,0.27081113]
[1738030220083,0.2442567,679.13,678.06,0.27081113]
[1738030220279,0.2442574,679.12,678.07,0.27081176]
[1738030220475,0.2442574,679.13,678.08,0.27081176]
[1738030220680,0.2442574,679.12,678.09,0.27081176]
[1738030220985,0.2442574,679.11,678.1,0.27081176]
[1738030221283,0.2442574,679.1,678.11,0.27081176]
[1738030221483,0.2442574,679.09,678.12,0.27081176]
[1738030221683,0.2442574,679.08,678.13,0.27081176]
[1738030221885,1.10294079,679.14,678.04,0.29496784]
[1738030222182,0.24424779,679.13,678.05,0.27080205]
[1738030224086,1.10294079,679.14,678.05,0.27080205]
[1738030225685,1.10294079,679.14,678.06,0.27079452]
[1738030225883,1.10294079,679.14,678.05,0.27079452]
[1738030226083,1.10294079,679.14,678.04,0.29496784]
[1738030226084,1.10294079,679.12,678.06,0.27079452]
[1738030226281,1.10294079,679.12,678.07,0.56574931]
[1738030226482,1.10294079,679.12,678.08,0.56574496]
[1738030226689,1.10294079,679.12,678.09,0.27079452]
[1738030226886,1.10294079,679.12,678.09,0.56574061]
[1738030227082,1.10294079,679.12,678.1,0.27079452]
[1738030227286,1.10294079,679.12,678.11,0.29493739]
[1738030227485,1.10294079,679.12,678.12,0.27079452]
[1738030227687,1.10294079,679.12,678.13,0.2949287]
[1738030228591,1.10294079,679.12,678.14,0.27076727]
[1738030228792,1.10294079,679.26,678.14,0.27076727]
[1738030228986,0.2442124,679.25,678.14,0.27076727]
[1738030229592,0.2442124,679.25,678.13,0.2949287]
[1738030229792,1.10294079,679.26,678.14,0.27076982]
[1738030230191,0.24421366,679.25,678.14,0.27076982]
[1738030231095,0.2442128,679.24,678.15,0.27076661]
[1738030231297,1.10294079,679.26,678.16,0.27076661]
[1738030231486,0.24421279,679.25,678.14,0.27076661]
[1738030231687,0.24421279,679.25,678.13,0.2949287]
[1738030231893,0.24421279,679.25,678.14,0.27076731]
[1738030232089,0.24421279,679.28,678.14,0.27076731]
[1738030232293,0.24421279,679.27,678.14,0.27076731]
[1738030232595,0.24421279,679.26,678.15,0.29492]
[1738030232790,0.24421279,679.28,678.15,0.29492]
[1738030232992,0.24421279,679.27,678.16,0.27076816]
[1738030233191,0.24421279,679.28,678.16,0.56568381]
[1738030233391,0.24421279,679.27,678.16,0.29491565]
[1738030233592,0.24421279,679.26,678.17,0.27076247]
[1738030233790,0.24421279,679.25,678.17,0.27076247]
[1738030233995,0.24421279,679.28,678.17,0.27076247]
[1738030234195,1.10294079,679.29,678.16,0.29491565]
[1738030234400,1.10294079,679.29,678.17,0.27075258]
[1738030234897,1.10294079,679.28,678.17,0.27075258]
[1738030238296,0.24419861,679.27,678.17,0.27075258]
[1738030238490,0.24419861,679.33,678.17,0.27075258]
[1738030238694,1.10294079,679.34,678.17,0.27075258]
[1738030238897,0.24419845,679.32,678.17,0.27075258]
[1738030239091,0.24419845,679.31,678.17,0.27075258]
[1738030239293,0.24419845,679.33,678.17,0.27075258]
[1738030239496,0.24419845,679.32,678.17,0.27075258]
[1738030239693,0.24419845,679.33,678.17,0.27075258]
[1738030239897,0.24419845,679.32,678.17,0.27075258]
[1738030240093,1.10294079,679.34,678.16,0.29491565]
[1738030240293,0.24419463,679.33,678.17,0.27074814]
[1738030240498,0.24419463,679.33,678.18,0.29490695]
[1738030240698,0.24419463,679.33,678.19,0.27074814]
[1738030240997,1.10294079,679.3,678.2,0.29489826]
[1738030241200,1.10294079,679.3,678.21,0.27074814]
[1738030242199,0.24418989,679.29,678.21,0.27074814]
[1738030243795,1.10294079,679.33,678.2,0.29489826]
[1738030243997,0.24418645,679.32,678.21,0.27073982]
[1738030245100,0.24418504,679.31,678.22,0.27073837]
[1738030245300,0.24418504,679.3,678.23,0.27073837]
[1738030245501,0.24418504,679.32,678.21,0.27073837]
[1738030245697,1.10294079,679.33,678.2,0.29489826]
[1738030245900,1.10294079,679.33,678.21,0.27073913]
[1738030245901,0.2441858,679.32,678.21,0.27073913]
[1738030246197,1.10294079,679.27,678.21,0.27073913]
[1738030246401,0.2441858,679.26,678.21,0.27073913]
[1738030247702,0.24419246,679.25,678.22,0.27074589]
[1738030248003,0.24419246,679.24,678.23,0.27074589]
[1738030248199,0.24419246,679.24,678.2,0.29489826]
[1738030248200,0.24419246,679.26,678.21,0.27074589]
[1738030248504,0.24419246,679.25,678.22,0.27074589]
[1738030248697,0.24419246,679.24,678.23,0.27074589]
[1738030248895,0.24419246,679.26,678.21,0.27074589]
[1738030249102,0.24419246,679.25,678.22,0.27074589]
[1738030249303,0.24419246,679.26,678.21,0.27074589]
[1738030249503,0.24419783,679.25,678.22,0.27075132]
[1738030249699,0.24419783,679.26,678.21,0.27075132]
[1738030249896,0.24419783,679.25,678.22,0.27075132]
[1738030250099,0.24419783,679.26,678.21,0.27075132]
[1738030250298,0.24419783,679.25,678.22,0.27075132]
[1738030250497,1.10294079,679.27,678.2,0.29489826]
[1738030253807,1.10294079,679.27,678.21,0.2707355]
[1738030254007,1.10294079,679.32,678.21,0.2707355]
[1738030255809,1.10294079,679.32,678.22,0.29488956]
[1738030256003,1.10294079,679.32,678.23,0.2707355]
[1738030256402,1.10294079,679.32,678.24,0.29488086]
[1738030256602,1.10294079,679.45,678.24,0.29488086]
[1738030256807,1.10294079,679.45,678.25,0.27069507]
[1738030257008,1.10294079,679.45,678.26,0.29487217]
[1738030257205,1.10294079,679.45,678.27,0.27069507]
[1738030257605,1.10294079,679.45,678.26,0.29487217]
[1738030257807,1.10294079,679.45,678.27,0.27069655]
[1738030258704,1.10294079,679.45,678.26,0.29487217]
[1738030258904,1.10294079,679.45,678.27,0.27069514]
[1738030260405,1.10294079,679.45,678.26,0.29487217]
[1738030260608,1.10294079,679.45,678.27,0.27069732]
[1738030260803,1.10294079,679.51,678.27,0.27069732]
[1738030261010,0.24414561,679.5,678.27,0.27069732]
[1738030261205,0.24414561,679.5,678.26,0.29487217]
[1738030261611,0.24414561,679.5,678.27,0.27069851]
[1738030262111,0.24414561,679.5,678.26,0.29487217]
[1738030263514,0.24414561,679.5,678.27,0.27070159]
[1738030264011,1.10294079,679.48,678.27,0.27070159]
[1738030264314,0.24414561,679.47,678.27,0.27070159]